[Event "FIDE WYCC Girls U14 2023"]
[Site "Montesilvano"]
[Date "2023.11.21"]
[Round "8.3"]
[White "Dicen, Elis Denele"]
[Black "Khulan, Bayarsaikhan"]
[Result "0-1"]
[ECO "A57"]
[WhiteElo "1976"]
[BlackElo "1615"]
[Annotator "NA RC"]
[PlyCount "84"]
[EventDate "2023.11.13"]
[EventType "swiss"]
[EventCountry "ITA"]
[SourceTitle "playchess.com"]
[Source "ChessBase"]
[SourceQuality "1"]
[TimeControl "40/5400+30:1800+30"]

1. d4 {[%emt 0:00:03]} Nf6 {[%emt 0:00:03]} 2. c4 {[%emt 0:00:09]} c5 {[%emt 0:00:02]} 3. d5 {[%emt 0:00:15]} b5 {[%emt 0:00:02]} 4. cxb5 {[%emt 0:00:24]} e6 {[%emt 0:00:07]} 5. Nc3 {[%emt 0:01:16]} exd5 {[%emt 0:00:26]} 6. Nxd5 {[%emt 0:01:11]} Bb7 {[%emt 0:00:10]} 7. e4 {[%emt 0:03:33]} d6 {[%emt 0:14:56]} 8. Bc4 {[%emt 0:03:54]} Nbd7 {[%emt 0:01:20]} 9. Nf3 {[%emt 0:10:24]} Be7 {[%emt 0:05:43]} 10. O-O {[%emt 0:03:51]} O-O {[%emt 0:05:39]} 11. Bf4 {[%emt 0:10:32]} Nxe4 {[%emt 0:23:53]} 12. Re1 {[%emt 0:14:35]} Ndf6 {[%emt 0:00:53]} 13. Qd3 {[%emt 0:01:11]} Bxd5 {[%emt 0:03:44]} 14. Bxd5 {[%emt 0:02:34]} Nxd5 {[%emt 0:00:14]} 15. Qxd5 {[%emt 0:00:13]} Nf6 {[%emt 0:00:55]} 16. Qd3 {[%emt 0:01:31]} d5 {[%emt 0:03:25]} 17. Rad1 {[%emt 0:06:26]} h6 {[%emt 0:14:42]} 18. Be5 {[%emt 0:03:44]} Rc8 {[%emt 0:01:44]} 19. b3 {[%emt 0:02:40]} d4 {[%emt 0:05:35]} 20. Bxf6 {[%emt 0:05:39]} Bxf6 {[%emt 0:00:13]} 21. Nd2 {[%emt 0:00:40]} Qd5 {[%emt 0:02:56]} 22. Ne4 {[%emt 0:06:15]} Be5 {[%emt 0:03:06]} 23. Rc1 {[%emt 0:01:56]} Bf4 {[%emt 0:01:33]} 24. Qf3 {[%emt 0:03:36]} Qe5 {[%emt 0:01:59]} 25. Ng3 {[%emt 0:01:54]} Qb8 {[%emt 0:00:54]} 26. Rc4 {[%emt 0:03:05]} Bxg3 {[%emt 0:01:18]} 27. hxg3 {[%emt 0:00:32]} Qxb5 {[%emt 0:00:15]} 28. Rec1 {[%emt 0:00:29]} Rfd8 {[%emt 0:01:00]} 29. Qd3 {[%emt 0:01:31]} Rc6 {[%emt 0:02:05]} 30. a4 {[%emt 0:01:52]} Qa6 {[%emt 0:00:38]} 31. Qf3 {[%emt 0:01:25]} d3 {[%emt 0:01:59]} 32. Rd1 {[%emt 0:01:05]} d2 {[%emt 0:00:16]} 33. Qc3 {[%emt 0:01:14]} Rcd6 {[%emt 0:00:38]} 34. Rg4 {[%emt 0:01:20]} g6 {[%emt 0:00:49]} 35. Rc4 {[%emt 0:01:14]} Rd3 {[%emt 0:00:20]} 36. Qc2 {[%emt 0:00:37]} Qe6 {[%emt 0:00:28]} 37. b4 {[%emt 0:01:10]} Qe1+ {[%emt 0:00:47]} 38. Kh2 {[%emt 0:00:27]} Qxf2 {[%emt 0:00:07]} 39. bxc5 {[%emt 0:00:44]} Qxg3+ {[%emt 0:00:06]} 40. Kg1 {[%emt 0:00:00]} Re8 {[%emt 0:00:00]} 41. Rf1 {[%emt 0:01:01]} Re2 {[%emt 0:01:11]} 42. Qxd3 {[%emt 0:00:49]} Qxg2# {[%emt 0:00:10]} 0-1

[Event "FIDE WYCC Girls U14 2023"]
[Site "Montesilvano"]
[Date "2023.11.21"]
[Round "8.4"]
[White "Gaszka, Zuzanna"]
[Black "Jiang, Tianyu"]
[Result "1/2-1/2"]
[ECO "B24"]
[WhiteElo "1758"]
[BlackElo "1917"]
[Annotator "NA RC"]
[PlyCount "81"]
[EventDate "2023.11.13"]
[EventType "swiss"]
[EventCountry "ITA"]
[SourceTitle "playchess.com"]
[Source "ChessBase"]
[SourceQuality "1"]
[TimeControl "40/5400+30:1800+30"]

1. e4 {[%emt 0:00:02]} c5 {[%emt 0:00:06]} 2. Nc3 {[%emt 0:00:04]} Nc6 {[%emt 0:01:33]} 3. Bb5 {[%emt 0:00:06]} Nd4 {[%emt 0:00:07]} 4. Nf3 {[%emt 0:00:08]} e6 {[%emt 0:00:14]} 5. O-O {[%emt 0:00:32]} a6 {[%emt 0:00:06]} 6. Bd3 {[%emt 0:00:32]} Nc6 {[%emt 0:00:26]} 7. Be2 {[%emt 0:01:05]} Qc7 {[%emt 0:03:21]} 8. d4 {[%emt 0:06:00]} cxd4 {[%emt 0:00:05]} 9. Nxd4 {[%emt 0:00:05]} Nf6 {[%emt 0:00:09]} 10. Be3 {[%emt 0:03:20]} Be7 {[%emt 0:00:12]} 11. Kh1 {[%emt 0:02:23]} O-O {[%emt 0:00:38]} 12. f4 {[%emt 0:00:50]} d6 {[%emt 0:00:15]} 13. Qe1 {[%emt 0:01:53]} Nxd4 {[%emt 0:16:10]} 14. Bxd4 {[%emt 0:00:07]} b5 {[%emt 0:00:04]} 15. Bd3 {[%emt 0:03:49]} Bb7 {[%emt 0:06:29]} 16. Qg3 {[%emt 0:02:49]} b4 {[%emt 0:06:33]} 17. Nd1 {[%emt 0:01:36]} g6 {[%emt 0:09:24]} 18. Qe1 {[%emt 0:28:05]} e5 {[%emt 0:10:40]} 19. fxe5 {[%emt 0:03:37]} dxe5 {[%emt 0:02:45]} 20. Be3 {[%emt 0:07:24]} Nxe4 {[%emt 0:07:29]} 21. Bh6 {[%emt 0:01:40]} f5 {[%emt 0:02:18]} 22. Bxf8 {[%emt 0:01:02]} Bxf8 {[%emt 0:05:59]} 23. Ne3 {[%emt 0:02:05]} Nf6 {[%emt 0:08:13]} 24. Qh4 {[%emt 0:12:06]} Qg7 {[%emt 0:04:38]} 25. Rad1 {[%emt 0:04:32]} Kh8 {[%emt 0:03:09]} 26. Qh3 {[%emt 0:04:03]} f4 {[%emt 0:03:42]} 27. Nc4 {[%emt 0:02:36]} Re8 {[%emt 0:02:50]} 28. Be2 {[%emt 0:01:01]} Qc7 {[%emt 0:02:16]} 29. b3 {[%emt 0:01:41]} Bc8 {[%emt 0:01:44]} 30. Qh4 {[%emt 0:00:36]} Ne4 {[%emt 0:03:08]} 31. Bd3 {[%emt 0:01:09]} Be7 {[%emt 0:00:13]} 32. Qe1 {[%emt 0:00:49]} Nc3 {[%emt 0:00:05]} 33. Qxe5+ {[%emt 0:01:58]} Qxe5 {[%emt 0:00:05]} 34. Nxe5 {[%emt 0:00:04]} Nxd1 {[%emt 0:00:42]} 35. Rxd1 {[%emt 0:00:06]} Bf6 {[%emt 0:00:29]} 36. Nf7+ {[%emt 0:00:44]} Kg7 {[%emt 0:01:05]} 37. Nd6 {[%emt 0:00:12]} Rd8 {[%emt 0:00:03]} 38. Nxc8 {[%emt 0:00:14]} Rxc8 {[%emt 0:00:02]} 39. Kg1 {[%emt 0:00:56]} Bh4 {[%emt 0:01:43]} 40. Kf1 {[%emt 0:00:00]} a5 {[%emt 0:00:00]} 41. Rd2 {[%emt 0:03:08]} 1/2-1/2

[Event "FIDE WYCC Girls U14 2023"]
[Site "Montesilvano"]
[Date "2023.11.21"]
[Round "8.5"]
[White "Goriachkina, Oksana"]
[Black "Sezdbekova, Aizhan"]
[Result "1-0"]
[ECO "E15"]
[WhiteElo "1915"]
[BlackElo "1594"]
[Annotator "NA RC"]
[PlyCount "57"]
[EventDate "2023.11.13"]
[EventType "swiss"]
[EventCountry "ITA"]
[SourceTitle "playchess.com"]
[Source "ChessBase"]
[SourceQuality "1"]
[TimeControl "40/5400+30:1800+30"]

1. d4 {[%emt 0:00:03]} Nf6 {[%emt 0:00:05]} 2. c4 {[%emt 0:00:03]} e6 {[%emt 0:00:04]} 3. Nf3 {[%emt 0:00:04]} b6 {[%emt 0:00:04]} 4. g3 {[%emt 0:00:03]} Ba6 {[%emt 0:00:04]} 5. Qb3 {[%emt 0:00:04]} Bb7 {[%emt 0:06:23]} 6. Nc3 {[%emt 0:02:25]} Be7 {[%emt 0:04:18]} 7. Bg2 {[%emt 0:00:41]} O-O {[%emt 0:03:08]} 8. O-O {[%emt 0:12:11]} Na6 {[%emt 0:12:42]} 9. h4 {[%emt 0:05:37]} c5 {[%emt 0:05:24]} 10. d5 {[%emt 0:01:08]} exd5 {[%emt 0:00:17]} 11. cxd5 {[%emt 0:00:58]} Rc8 {[%emt 0:00:43]} 12. e4 {[%emt 0:05:18]} c4 {[%emt 0:06:35]} 13. Qd1 {[%emt 0:00:47]} Ne8 {[%emt 0:10:25]} 14. Bf4 {[%emt 0:16:01]} Bc5 {[%emt 0:08:11]} 15. Bh3 {[%emt 0:03:59]} h6 {[%emt 0:11:43]} 16. Ne5 {[%emt 0:02:23]} Nf6 {[%emt 0:03:58]} 17. h5 {[%emt 0:17:07]} Re8 {[%emt 0:01:26]} 18. Bf5 {[%emt 0:00:45]} Bf8 {[%emt 0:12:24]} 19. Ng4 {[%emt 0:06:31]} Nc5 {[%emt 0:02:38]} 20. e5 {[%emt 0:01:18]} Nxg4 {[%emt 0:00:44]} 21. Qxg4 {[%emt 0:00:01]} Kh8 {[%emt 0:00:12]} 22. Rad1 {[%emt 0:00:47]} Ra8 {[%emt 0:03:53]} 23. Rfe1 {[%emt 0:12:55]} Qc8 {[%emt 0:02:50]} 24. Bc2 {[%emt 0:01:39]} Ba6 {[%emt 0:02:15]} 25. Qf5 {[%emt 0:03:58]} Nd3 {[%emt 0:00:06]} 26. Bxd3 {[%emt 0:00:50]} cxd3 {[%emt 0:00:06]} 27. Ne4 {[%emt 0:01:47]} Qc2 {[%emt 0:01:31]} 28. Bxh6 {[%emt 0:00:48]} gxh6 {[%emt 0:00:24]} 29. Nf6 {[%emt 0:00:05]} 1-0

[Event "FIDE WYCC Girls U14 2023"]
[Site "Montesilvano"]
[Date "2023.11.21"]
[Round "8.6"]
[White "Mkrtchyan, Anahit H."]
[Black "Tsetskhladze, Mariam"]
[Result "0-1"]
[ECO "B24"]
[WhiteElo "1630"]
[BlackElo "1911"]
[Annotator "NA RC"]
[PlyCount "102"]
[EventDate "2023.11.13"]
[EventType "swiss"]
[EventCountry "ITA"]
[SourceTitle "playchess.com"]
[Source "ChessBase"]
[SourceQuality "1"]
[TimeControl "40/5400+30:1800+30"]

1. e4 {[%emt 0:00:31]} c5 {[%emt 0:01:13]} 2. Nc3 {[%emt 0:00:05]} Nc6 {[%emt 0:00:07]} 3. Bb5 {[%emt 0:00:04]} Nd4 {[%emt 0:00:24]} 4. Bc4 {[%emt 0:00:05]} e6 {[%emt 0:00:42]} 5. Nge2 {[%emt 0:00:06]} Nf6 {[%emt 0:00:35]} 6. O-O {[%emt 0:00:05]} a6 {[%emt 0:00:18]} 7. a4 {[%emt 0:00:05]} d5 {[%emt 0:03:44]} 8. exd5 {[%emt 0:00:06]} exd5 {[%emt 0:00:07]} 9. Ba2 {[%emt 0:00:04]} Bg4 {[%emt 0:04:43]} 10. d3 {[%emt 0:00:16]} Bd6 {[%emt 0:09:12]} 11. h3 {[%emt 0:00:06]} Nxe2+ {[%emt 0:11:19]} 12. Nxe2 {[%emt 0:00:07]} Be6 {[%emt 0:00:44]} 13. f4 {[%emt 0:03:40]} d4 {[%emt 0:11:18]} 14. Bxe6 {[%emt 0:10:17]} fxe6 {[%emt 0:00:04]} 15. c3 {[%emt 0:00:43]} O-O {[%emt 0:09:24]} 16. Qb3 {[%emt 0:02:37]} Qd7 {[%emt 0:01:04]} 17. cxd4 {[%emt 0:03:52]} cxd4 {[%emt 0:00:10]} 18. Bd2 {[%emt 0:08:13]} Nd5 {[%emt 0:13:06]} 19. Kh1 {[%emt 0:04:56]} Bc5 {[%emt 0:02:02]} 20. a5 {[%emt 0:07:43]} Kh8 {[%emt 0:10:11]} 21. Rfc1 {[%emt 0:12:54]} Rac8 {[%emt 0:06:01]} 22. Rc4 {[%emt 0:02:38]} Ne7 {[%emt 0:06:57]} 23. Rac1 {[%emt 0:02:21]} Ba7 {[%emt 0:00:37]} 24. Bb4 {[%emt 0:01:26]} Rxc4 {[%emt 0:01:52]} 25. Rxc4 {[%emt 0:00:06]} Rd8 {[%emt 0:00:18]} 26. Bc5 {[%emt 0:04:01]} Bxc5 {[%emt 0:00:18]} 27. Rxc5 {[%emt 0:00:05]} Nc6 {[%emt 0:00:08]} 28. Qb6 {[%emt 0:01:27]} h6 {[%emt 0:01:55]} 29. b4 {[%emt 0:00:54]} Re8 {[%emt 0:00:36]} 30. b5 {[%emt 0:00:42]} Ne7 {[%emt 0:03:46]} 31. bxa6 {[%emt 0:02:13]} bxa6 {[%emt 0:00:24]} 32. Qxa6 {[%emt 0:00:46]} Nd5 {[%emt 0:01:17]} 33. Qc4 {[%emt 0:02:58]} Rf8 {[%emt 0:00:59]} 34. Qxd4 {[%emt 0:01:54]} Qb7 {[%emt 0:00:24]} 35. Qe4 {[%emt 0:01:02]} Qb8 {[%emt 0:01:05]} 36. Qxe6 {[%emt 0:02:54]} Nxf4 {[%emt 0:00:17]} 37. Nxf4 {[%emt 0:00:36]} Qxf4 {[%emt 0:00:09]} 38. Qe4 {[%emt 0:01:48]} Qd2 {[%emt 0:01:27]} 39. a6 {[%emt 0:03:36]} Qa2 {[%emt 0:00:29]} 40. Qb7 {[%emt 0:00:00]} Qa1+ {[%emt 0:00:00]} 41. Kh2 {[%emt 0:03:31]} Qd4 {[%emt 0:01:30]} 42. Qc7 {[%emt 0:01:19]} Rf1 {[%emt 0:05:50]} 43. Rf5 {[%emt 0:28:03]} Qg1+ {[%emt 0:05:07]} 44. Kg3 {[%emt 0:00:09]} Qe3+ {[%emt 0:01:37]} 45. Kh4 {[%emt 0:13:45]} Qe1+ {[%emt 0:07:17]} 46. Kg4 {[%emt 0:02:05]} Qe6 {[%emt 0:05:38]} 47. Qb8+ {[%emt 0:00:48]} Kh7 {[%emt 0:00:06]} 48. a7 {[%emt 0:00:02]} Qg6+ {[%emt 0:03:24]} 49. Kh4 {[%emt 0:00:28]} Rxf5 {[%emt 0:00:23]} 50. g4 {[%emt 0:01:09]} Qg5+ {[%emt 0:00:33]} 51. Kg3 {[%emt 0:00:09]} Qe3+ 0-1

[Event "FIDE WYCC Girls U14 2023"]
[Site "Montesilvano"]
[Date "2023.11.21"]
[Round "8.7"]
[White "Natoli, Alessia"]
[Black "Ciarletta, Iris"]
[Result "0-1"]
[ECO "B50"]
[WhiteElo "1756"]
[BlackElo "1882"]
[Annotator "NA RC"]
[PlyCount "94"]
[EventDate "2023.11.13"]
[EventType "swiss"]
[EventCountry "ITA"]
[SourceTitle "playchess.com"]
[Source "ChessBase"]
[SourceQuality "1"]
[TimeControl "40/5400+30:1800+30"]

1. e4 {[%emt 0:00:04]} c5 {[%emt 0:00:29]} 2. Nf3 {[%emt 0:00:10]} d6 {[%emt 0:00:12]} 3. c3 {[%emt 0:00:07]} Nf6 {[%emt 0:02:22]} 4. Be2 {[%emt 0:00:17]} Nc6 {[%emt 0:01:52]} 5. d4 {[%emt 0:02:27]} cxd4 {[%emt 0:02:25]} 6. cxd4 {[%emt 0:05:33]} Bg4 {[%emt 0:03:13]} 7. Nc3 {[%emt 0:02:53]} g6 {[%emt 0:02:24]} 8. d5 {[%emt 0:05:23]} Bxf3 {[%emt 0:01:13]} 9. gxf3 {[%emt 0:03:54]} Ne5 {[%emt 0:01:16]} 10. f4 {[%emt 0:02:24]} Ned7 {[%emt 0:00:57]} 11. Qa4 {[%emt 0:02:07]} Qb8 {[%emt 0:07:03]} 12. Be3 {[%emt 0:14:37]} Bg7 {[%emt 0:05:14]} 13. Bd4 {[%emt 0:03:17]} O-O {[%emt 0:03:27]} 14. Bb5 {[%emt 0:01:38]} Qc7 {[%emt 0:07:43]} 15. Bxd7 {[%emt 0:09:34]} Qxd7 {[%emt 0:03:19]} 16. Qxd7 {[%emt 0:01:49]} Nxd7 {[%emt 0:00:10]} 17. Bxg7 {[%emt 0:00:08]} Kxg7 {[%emt 0:00:07]} 18. f3 {[%emt 0:01:30]} a6 {[%emt 0:03:30]} 19. Ke2 {[%emt 0:03:00]} Rac8 {[%emt 0:05:01]} 20. Rac1 {[%emt 0:01:41]} Rc7 {[%emt 0:02:42]} 21. h4 {[%emt 0:04:19]} Nf6 {[%emt 0:01:57]} 22. Ke3 {[%emt 0:02:26]} Rfc8 {[%emt 0:02:02]} 23. Rcg1 {[%emt 0:05:49]} Nh5 {[%emt 0:06:00]} 24. Rg2 {[%emt 0:03:55]} b5 {[%emt 0:05:21]} 25. Rhh2 {[%emt 0:03:18]} Rxc3+ {[%emt 0:06:40]} 26. bxc3 {[%emt 0:00:25]} Rxc3+ {[%emt 0:00:06]} 27. Kd2 {[%emt 0:01:27]} Ra3 {[%emt 0:00:50]} 28. Kd1 {[%emt 0:02:04]} Nxf4 {[%emt 0:00:39]} 29. Rf2 {[%emt 0:02:07]} h5 {[%emt 0:02:12]} 30. Kd2 {[%emt 0:02:55]} Kf6 {[%emt 0:04:34]} 31. Kc2 {[%emt 0:03:12]} Rxa2+ {[%emt 0:01:45]} 32. Kc3 {[%emt 0:00:50]} Ra3+ {[%emt 0:01:45]} 33. Kb4 {[%emt 0:01:14]} Ra4+ {[%emt 0:00:50]} 34. Kc3 {[%emt 0:00:41]} a5 {[%emt 0:02:35]} 35. Ra2 {[%emt 0:01:39]} Rc4+ {[%emt 0:00:34]} 36. Kd2 {[%emt 0:00:40]} a4 {[%emt 0:01:04]} 37. Ke3 {[%emt 0:00:39]} Ke5 {[%emt 0:01:03]} 38. Rhc2 {[%emt 0:00:23]} Rc5 {[%emt 0:02:15]} 39. Rxc5 {[%emt 0:02:43]} dxc5 {[%emt 0:00:06]} 40. Rc2 {[%emt 0:00:00]} a3 {[%emt 0:00:00]} 41. Rxc5 {[%emt 0:09:35]} a2 {[%emt 0:01:03]} 42. d6+ {[%emt 0:00:49]} Kxd6 {[%emt 0:00:12]} 43. Rc1 {[%emt 0:00:29]} b4 {[%emt 0:01:12]} 44. Rd1+ {[%emt 0:01:27]} Ke5 {[%emt 0:01:20]} 45. Kd2 {[%emt 0:00:26]} Ng2 {[%emt 0:00:54]} 46. Rg1 {[%emt 0:01:32]} Nxh4 {[%emt 0:01:13]} 47. Kc2 {[%emt 0:01:21]} Nxf3 {[%emt 0:00:40]} 0-1

[Event "FIDE WYCC Girls U14 2023"]
[Site "Montesilvano"]
[Date "2023.11.21"]
[Round "8.8"]
[White "Orazalina, Nursulu"]
[Black "Sneha Halder"]
[Result "1-0"]
[ECO "C48"]
[WhiteElo "1428"]
[BlackElo "1807"]
[Annotator "NA RC"]
[PlyCount "151"]
[EventDate "2023.11.13"]
[EventType "swiss"]
[EventCountry "ITA"]
[SourceTitle "playchess.com"]
[Source "ChessBase"]
[SourceQuality "1"]
[TimeControl "40/5400+30:1800+30"]

1. e4 {[%emt 0:00:03]} e5 {[%emt 0:00:09]} 2. Nf3 {[%emt 0:00:08]} Nf6 {[%emt 0:00:05]} 3. Nc3 {[%emt 0:00:14]} Nc6 {[%emt 0:00:22]} 4. Bb5 {[%emt 0:00:10]} d6 {[%emt 0:00:13]} 5. d4 {[%emt 0:00:14]} exd4 {[%emt 0:00:10]} 6. Nxd4 {[%emt 0:00:21]} Bd7 {[%emt 0:00:11]} 7. Bxc6 {[%emt 0:00:09]} bxc6 {[%emt 0:00:02]} 8. Qf3 {[%emt 0:02:06]} c5 {[%emt 0:01:36]} 9. Nf5 {[%emt 0:00:38]} g6 {[%emt 0:01:52]} 10. Bg5 {[%emt 0:14:57]} gxf5 {[%emt 0:14:14]} 11. e5 {[%emt 0:00:07]} dxe5 {[%emt 0:10:46]} 12. Bxf6 {[%emt 0:00:06]} Qxf6 {[%emt 0:00:01]} 13. Qxa8+ {[%emt 0:00:10]} Qd8 {[%emt 0:00:02]} 14. Qxd8+ Kxd8 15. O-O-O {[%emt 0:02:25]} Bd6 {[%emt 0:00:03]} 16. Nd5 {[%emt 0:01:25]} Bc6 {[%emt 0:01:07]} 17. Ne3 {[%emt 0:00:43]} f4 {[%emt 0:00:24]} 18. Nc4 {[%emt 0:01:35]} Ke7 {[%emt 0:00:05]} 19. f3 {[%emt 0:01:02]} Bb5 {[%emt 0:01:09]} 20. Nxd6 {[%emt 0:01:12]} cxd6 {[%emt 0:00:01]} 21. Rd2 {[%emt 0:02:01]} f5 {[%emt 0:01:23]} 22. g3 {[%emt 0:01:07]} Bc6 {[%emt 0:16:10]} 23. Rf2 {[%emt 0:05:40]} Rg8 {[%emt 0:03:25]} 24. gxf4 {[%emt 0:00:18]} exf4 {[%emt 0:00:33]} 25. Re1+ {[%emt 0:01:12]} Kd7 {[%emt 0:00:06]} 26. c4 {[%emt 0:02:35]} Rg6 {[%emt 0:00:59]} 27. Rd1 {[%emt 0:02:37]} h5 {[%emt 0:06:47]} 28. Rd3 {[%emt 0:03:05]} a6 {[%emt 0:01:17]} 29. Ra3 {[%emt 0:00:59]} Bb7 {[%emt 0:00:17]} 30. Rb3 {[%emt 0:00:59]} Kc7 {[%emt 0:03:45]} 31. Re2 {[%emt 0:15:24]} Rg7 {[%emt 0:00:01]} 32. Re6 {[%emt 0:04:14]} Bc8 {[%emt 0:00:22]} 33. Re2 {[%emt 0:01:25]} h4 {[%emt 0:00:17]} 34. Rd3 {[%emt 0:00:26]} h3 {[%emt 0:00:41]} 35. Kd2 {[%emt 0:02:42]} Bd7 {[%emt 0:03:14]} 36. Kc3 {[%emt 0:01:44]} Rg1 {[%emt 0:05:24]} 37. Re7 {[%emt 0:02:38]} Rh1 {[%emt 0:00:09]} 38. Re2 {[%emt 0:01:56]} Rf1 {[%emt 0:02:56]} 39. Kd2 {[%emt 0:11:51]} Rh1 {[%emt 0:02:27]} 40. Rf2 {[%emt 0:00:00]} Bc6 {[%emt 0:00:00]} 41. Ke2 {[%emt 0:02:51]} Rc1 {[%emt 0:02:00]} 42. b3 {[%emt 0:00:54]} Rc2+ {[%emt 0:09:02]} 43. Ke1 {[%emt 0:00:59]} Rc1+ {[%emt 0:00:14]} 44. Kd2 {[%emt 0:00:12]} Ra1 {[%emt 0:00:55]} 45. Kc3 {[%emt 0:00:10]} Re1 {[%emt 0:00:57]} 46. Kb2 {[%emt 0:19:10]} Re3 {[%emt 0:11:06]} 47. Kc2 {[%emt 0:00:26]} Re1 {[%emt 0:03:24]} 48. Rd1 {[%emt 0:07:44]} Re3 {[%emt 0:00:11]} 49. Kd2 {[%emt 0:01:36]} Kd7 {[%emt 0:12:32]} 50. Re1 {[%emt 0:00:21]} Rxf3 {[%emt 0:00:22]} 51. Rxf3 {[%emt 0:00:06]} Bxf3 {[%emt 0:00:03]} 52. Rf1 {[%emt 0:00:11]} Bg4 {[%emt 0:01:00]} 53. Rxf4 {[%emt 0:00:10]} Ke6 {[%emt 0:00:00]} 54. Ke3 {[%emt 0:01:46]} Ke5 {[%emt 0:00:03]} 55. Rf2 {[%emt 0:03:56]} a5 {[%emt 0:00:33]} 56. Rd2 {[%emt 0:00:35]} f4+ {[%emt 0:00:08]} 57. Kf2 {[%emt 0:00:10]} Bf5 {[%emt 0:02:14]} 58. Rd5+ {[%emt 0:00:48]} Ke6 {[%emt 0:00:01]} 59. Kf3 {[%emt 0:01:44]} Bb1 {[%emt 0:00:26]} 60. Rd2 {[%emt 0:13:48]} Ke5 {[%emt 0:00:08]} 61. Rd5+ {[%emt 0:01:22]} Ke6 {[%emt 0:00:06]} 62. Kxf4 {[%emt 0:00:11]} Bxa2 {[%emt 0:00:02]} 63. Rd3 {[%emt 0:00:07]} a4 {[%emt 0:00:27]} 64. bxa4 {[%emt 0:00:05]} Bxc4 {[%emt 0:00:03]} 65. Rxh3 {[%emt 0:00:05]} d5 {[%emt 0:00:19]} 66. Rh6+ {[%emt 0:00:18]} Kd7 {[%emt 0:00:00]} 67. a5 {[%emt 0:00:51]} d4 {[%emt 0:01:23]} 68. Ke4 {[%emt 0:00:10]} Bf1 {[%emt 0:01:00]} 69. Kd5 {[%emt 0:00:28]} d3 {[%emt 0:06:07]} 70. Kxc5 {[%emt 0:00:09]} Kc7 {[%emt 0:00:04]} 71. Rd6 {[%emt 0:00:19]} Be2 {[%emt 0:00:51]} 72. h4 {[%emt 0:00:19]} Kb7 {[%emt 0:00:20]} 73. Rd5 {[%emt 0:01:13]} Ka6 {[%emt 0:00:41]} 74. Kd6 {[%emt 0:00:25]} Kb7 {[%emt 0:00:10]} 75. h5 {[%emt 0:00:29]} d2 {[%emt 0:00:07]} 76. h6 {[%emt 0:00:20]} 1-0

[Event "FIDE WYCC Girls U14 2023"]
[Site "Montesilvano"]
[Date "2023.11.21"]
[Round "8.9"]
[White "Diasamidze, Lulu"]
[Black "Lyutsinger, Iren"]
[Result "0-1"]
[ECO "B90"]
[WhiteElo "1676"]
[BlackElo "2020"]
[Annotator "NA RC"]
[PlyCount "70"]
[EventDate "2023.11.13"]
[EventType "swiss"]
[EventCountry "ITA"]
[SourceTitle "playchess.com"]
[Source "ChessBase"]
[SourceQuality "1"]
[TimeControl "40/5400+30:1800+30"]

1. e4 {[%emt 0:00:02]} c5 {[%emt 0:00:10]} 2. Nf3 {[%emt 0:00:06]} d6 {[%emt 0:00:07]} 3. d4 {[%emt 0:00:05]} cxd4 {[%emt 0:00:05]} 4. Nxd4 {[%emt 0:00:07]} Nf6 {[%emt 0:00:04]} 5. Nc3 {[%emt 0:00:07]} a6 {[%emt 0:00:04]} 6. h3 {[%emt 0:00:19]} e5 {[%emt 0:00:24]} 7. Nb3 {[%emt 0:01:02]} Be6 {[%emt 0:06:32]} 8. f4 {[%emt 0:00:25]} Qc7 {[%emt 0:05:41]} 9. Be2 {[%emt 0:09:31]} Be7 {[%emt 0:01:56]} 10. O-O {[%emt 0:02:13]} O-O {[%emt 0:05:12]} 11. f5 {[%emt 0:01:30]} Bc4 {[%emt 0:06:11]} 12. Be3 {[%emt 0:01:51]} b5 {[%emt 0:01:49]} 13. Bxc4 {[%emt 0:06:03]} bxc4 {[%emt 0:03:43]} 14. Nd2 {[%emt 0:00:49]} Qc6 {[%emt 0:09:01]} 15. Qe2 {[%emt 0:01:11]} Rc8 {[%emt 0:03:37]} 16. Kh2 {[%emt 0:05:09]} Nbd7 {[%emt 0:02:12]} 17. Rac1 {[%emt 0:01:33]} d5 {[%emt 0:03:19]} 18. exd5 {[%emt 0:01:02]} Nxd5 {[%emt 0:00:12]} 19. Nxd5 {[%emt 0:01:03]} Qxd5 {[%emt 0:00:09]} 20. Rfd1 {[%emt 0:00:55]} e4 {[%emt 0:04:34]} 21. Bf4 {[%emt 0:06:36]} Nf6 {[%emt 0:05:06]} 22. g4 {[%emt 0:03:06]} Bd6 {[%emt 0:03:07]} 23. Bxd6 {[%emt 0:10:27]} Qxd6+ {[%emt 0:00:10]} 24. Kh1 {[%emt 0:02:06]} c3 {[%emt 0:02:20]} 25. Nf1 {[%emt 0:06:08]} cxb2 {[%emt 0:01:16]} 26. Rb1 {[%emt 0:00:01]} Qa3 {[%emt 0:02:25]} 27. Ne3 {[%emt 0:05:40]} Rc3 {[%emt 0:00:24]} 28. Re1 {[%emt 0:00:01]} Nd7 {[%emt 0:01:28]} 29. Qd2 {[%emt 0:01:57]} Nb6 {[%emt 0:03:08]} 30. Kg2 {[%emt 0:01:37]} Rac8 {[%emt 0:01:14]} 31. f6 {[%emt 0:03:15]} Nc4 {[%emt 0:05:40]} 32. Nxc4 {[%emt 0:01:36]} R3xc4 {[%emt 0:00:16]} 33. c3 {[%emt 0:02:40]} Rxc3 {[%emt 0:01:22]} 34. Rxb2 {[%emt 0:00:32]} Rg3+ {[%emt 0:00:43]} 35. Kf1 {[%emt 0:00:16]} Qf3+ {[%emt 0:02:32]} 0-1